bitfinex-derivatives/quotes_BTCF0:USTF0_20241003
["timestamp","ask_amount","ask_price","bid_price","bid_amount"]
[1727969301050,0.001,60155.0,60154.0,0.096132]
[1727969301051,0.002,60155.0,60154.0,0.096132]
[1727969301240,0.085131,60155.0,60154.0,0.013]
[1727969301843,1.182851,60155.0,60142.0,0.3608]
[1727969302047,0.084133,60153.0,60152.0,0.013]
[1727969302250,0.374133,60153.0,60152.0,0.013]
[1727969302449,0.083144,60145.0,60144.0,0.083145]
[1727969302943,0.001,60155.0,60142.0,0.002]
[1727969303143,0.083132,60154.0,60153.0,0.083132]
[1727969303348,0.002,60155.0,60154.0,0.083132]
[1727969303650,0.01908614,60155.0,60154.0,0.083132]
[1727969303856,0.001,60155.0,60154.0,0.083132]
[1727969304242,0.001,60155.0,60154.0,0.373132]
[1727969304448,0.083126,60158.0,60154.0,0.29]
[1727969304651,0.083126,60158.0,60157.0,0.083128]
[1727969305050,0.10136267,60158.0,60157.0,0.083128]
[1727969305255,0.01823667,60158.0,60157.0,0.083128]
[1727969305469,0.083126,60158.0,60157.0,0.083128]
[1727969305752,0.083126,60158.0,60154.0,0.084131]
[1727969305753,0.083131,60155.0,60154.0,0.084131]
[1727969305961,0.083131,60155.0,60154.0,0.001]
[1727969306147,0.001,60158.0,60151.0,0.083136]
[1727969306450,0.001,60158.0,60157.0,0.001]
[1727969306451,0.085126,60158.0,60157.0,0.001]
[1727969306750,0.083147,60143.0,60142.0,0.3608]
[1727969307852,0.083157,60137.0,60136.0,0.083156]
[1727969308442,0.29,60141.0,60127.0,0.0326]
[1727969308443,0.083157,60136.0,60127.0,0.0326]
[1727969308751,0.083157,60136.0,60135.0,0.443958]
[1727969308953,0.070157,60136.0,60135.0,0.443958]
[1727969309252,0.360157,60136.0,60135.0,0.3608]
[1727969310444,0.360157,60136.0,60124.0,0.083173]
[1727969310445,0.082175,60125.0,60124.0,0.083173]
[1727969310654,0.29,60134.0,60117.0,0.3608]
[1727969310845,0.29,60134.0,60126.0,0.08317]
[1727969311047,0.083159,60135.0,60121.0,0.29]
[1727969311048,0.082159,60135.0,60121.0,0.29]
[1727969311252,0.083165,60130.0,60121.0,0.29]
[1727969311453,0.083165,60130.0,60129.0,0.083167]
[1727969311952,0.001,60134.0,60125.0,0.29]
[1727969311953,0.01874045,60134.0,60125.0,0.29]
[1727969312163,0.001,60134.0,60133.0,0.443961]
[1727969312343,0.001,60135.0,60134.0,0.08316]
[1727969312651,0.083145,60145.0,60144.0,0.083146]
[1727969313253,0.3396253,60153.0,60139.0,0.29]
[1727969313254,0.08314,60149.0,60139.0,0.29]
[1727969313451,0.08314,60149.0,60148.0,0.083139]
[1727969313752,0.083141,60148.0,60139.0,0.083152]
[1727969313952,0.083156,60137.0,60136.0,0.083156]
[1727969314352,0.083156,60137.0,60134.0,0.41192161]
[1727969314353,0.083158,60135.0,60134.0,0.3936]
[1727969314555,0.083153,60139.0,60134.0,0.3608]
[1727969314757,0.083153,60139.0,60138.0,0.083152]
[1727969315343,0.083158,60135.0,60134.0,0.443959]
[1727969315552,0.084158,60135.0,60134.0,0.444959]
[1727969315748,0.084158,60135.0,60134.0,0.3618]
[1727969316857,0.084158,60135.0,60134.0,0.44496]
[1727969317550,0.10225305,60135.0,60134.0,0.44496]
[1727969317950,0.002,60135.0,60134.0,0.44496]
[1727969318255,0.001,60135.0,60134.0,0.44396]
[1727969318466,0.084158,60135.0,60134.0,0.3608]
[1727969319059,0.084158,60135.0,60134.0,0.44396]
[1727969319251,0.085158,60135.0,60134.0,0.44496]
[1727969320351,0.085158,60135.0,60134.0,0.3618]
[1727969321252,0.085158,60135.0,60134.0,0.001]
[1727969322552,0.08317,60128.0,60127.0,0.083168]
[1727969323360,0.085158,60135.0,60131.0,0.083162]
[1727969323667,0.083164,60132.0,60131.0,0.083162]
[1727969323859,0.085158,60135.0,60125.0,0.29]
[1727969323860,0.002,60135.0,60125.0,0.29]
[1727969324065,0.002,60135.0,60134.0,0.44396]
[1727969324265,0.083145,60145.0,60144.0,0.083146]
[1727969324557,0.083135,60152.0,60138.0,0.083153]
[1727969324558,0.01766752,60147.0,60138.0,0.083153]
[1727969324866,0.083152,60140.0,60135.0,0.033]
[1727969325160,0.02064617,60149.0,60136.0,0.29]
[1727969325366,0.3608,60168.0,60147.0,0.29]
[1727969325555,0.3608,60168.0,60159.0,0.29]
[1727969325759,0.083114,60167.0,60159.0,0.29]
[1727969326059,0.083116,60166.0,60154.0,0.29]
[1727969326268,0.37880307,60168.0,60154.0,0.29]
[1727969326569,0.083119,60164.0,60154.0,0.29]
[1727969326753,0.083119,60164.0,60158.0,0.083126]
[1727969327962,0.084119,60164.0,60154.0,0.29]
[1727969328162,0.001,60164.0,60154.0,0.29]
[1727969328363,0.001,60164.0,60161.0,0.083122]
[1727969328563,0.001,60164.0,60162.0,0.083121]
[1727969328766,0.001,60164.0,60159.0,0.29]
[1727969329064,0.001,60164.0,60163.0,0.44392]
[1727969329952,0.04035651,60182.0,60181.0,0.083095]
[1727969329953,0.0322,60182.0,60181.0,0.083095]
[1727969330155,0.08268561,60182.0,60181.0,0.083095]
[1727969330368,0.01837716,60182.0,60181.0,0.083095]
[1727969330564,0.00249323,60184.0,60183.0,0.083092]
[1727969331556,0.00249323,60184.0,60181.0,0.001]
[1727969331557,0.08558423,60184.0,60181.0,0.001]
[1727969331760,0.08558423,60184.0,60181.0,0.084094]
[1727969331965,0.03210396,60183.0,60181.0,0.084094]
[1727969332165,0.08558423,60184.0,60181.0,0.084094]
[1727969332364,0.1059613,60184.0,60181.0,0.084094]
[1727969332868,0.1079613,60184.0,60181.0,0.083094]
[1727969333067,0.001,60183.0,60181.0,0.083094]
[1727969333574,0.001,60183.0,60181.0,0.089094]
[1727969333771,0.001,60183.0,60182.0,0.083093]
[1727969334663,0.00249323,60184.0,60183.0,0.083092]
[1727969335067,0.083093,60182.0,60181.0,0.006]
[1727969335477,0.871573,60182.0,60181.0,0.006]
[1727969335661,1.583093,60182.0,60181.0,0.006]
[1727969336274,0.083093,60182.0,60181.0,0.006]
[1727969336665,0.083093,60182.0,60170.0,0.2924929]
[1727969336977,0.083093,60182.0,60171.0,0.083107]
[1727969337478,0.083101,60177.0,60171.0,0.083107]
[1727969337676,0.29,60184.0,60170.0,0.2924929]
[1727969337974,0.083108,60171.0,60170.0,0.0024929]
[1727969338368,0.083108,60171.0,60170.0,0.0134929]
[1727969339175,0.084108,60171.0,60170.0,0.0134929]
[1727969339575,0.001,60171.0,60170.0,0.0966029]
[1727969340069,0.001,60171.0,60170.0,1.1952029]
[1727969340378,0.001,60171.0,60170.0,1.2092029]
[1727969340773,0.002,60171.0,60170.0,1.2092029]
[1727969341169,0.001,60171.0,60170.0,1.1982029]
[1727969341368,0.002,60171.0,60170.0,1.2082029]
[1727969341676,0.002,60171.0,60170.0,0.6082029]
[1727969341979,0.001,60171.0,60170.0,0.0996029]
[1727969342171,0.002,60171.0,60170.0,0.1096029]
[1727969342681,0.085108,60171.0,60170.0,0.1096029]
[1727969343278,0.085108,60171.0,60170.0,0.0264929]
[1727969343666,0.002,60171.0,60170.0,0.1096029]
[1727969343865,0.083096,60181.0,60171.0,0.083108]
[1727969344080,0.083097,60180.0,60171.0,0.083108]
[1727969344281,0.083097,60180.0,60179.0,0.083097]
[1727969344579,0.083094,60182.0,60181.0,0.083093]
[1727969344784,0.02066185,60186.0,60181.0,0.083093]
[1727969344975,0.00249304,60186.0,60185.0,0.083089]
[1727969345168,0.00249304,60186.0,60185.0,0.443889]
[1727969345375,0.00249304,60186.0,60185.0,0.3608]
[1727969345376,0.373088,60186.0,60185.0,0.3608]
[1727969345574,1.471528,60186.0,60185.0,0.3608]
[1727969345779,0.001,60182.0,60170.0,0.0164929]
[1727969345992,0.083108,60171.0,60170.0,0.0164929]
[1727969346379,0.145595,60181.0,60170.0,0.0164929]
[1727969346577,0.083108,60171.0,60170.0,0.0996019]
[1727969346781,0.083108,60171.0,60170.0,0.0024929]
[1727969347394,0.084108,60171.0,60170.0,0.0164929]
[1727969349390,0.002,60171.0,60170.0,0.0264929]
[1727969349585,0.085108,60171.0,60170.0,0.0264929]
[1727969350380,0.375108,60171.0,60170.0,0.0264929]
[1727969351983,0.085108,60171.0,60170.0,0.0264929]
[1727969352588,1.473708,60171.0,60170.0,0.0264929]
[1727969352780,1.50582052,60171.0,60161.0,0.3608]
[1727969352979,0.29,60162.0,60150.0,0.00249316]
[1727969353182,0.083136,60151.0,60150.0,0.00249316]
[1727969354178,0.083136,60151.0,60150.0,0.01649316]
[1727969354378,0.08313,60156.0,60155.0,0.083131]
[1727969354587,0.10253944,60162.0,60155.0,0.29]
[1727969354588,0.01941744,60162.0,60155.0,0.29]
[1727969354779,0.01941744,60162.0,60160.0,0.083123]
[1727969354780,0.083124,60161.0,60160.0,0.083123]
[1727969354983,0.03211559,60161.0,60159.0,0.3608]
[1727969355187,0.001,60162.0,60161.0,0.083122]
[1727969355386,0.24760468,60179.0,60170.0,0.083108]
[1727969355387,0.083109,60171.0,60170.0,0.083108]
[1727969355581,0.03211084,60171.0,60170.0,0.083108]
[1727969355786,0.03211084,60171.0,60170.0,0.373108]
[1727969355992,0.083104,60175.0,60174.0,0.083104]
[1727969356182,0.083108,60172.0,60171.0,0.083108]
[1727969356381,0.083112,60169.0,60168.0,0.083112]
[1727969356889,0.083104,60174.0,60164.0,0.083117]
[1727969357090,0.083104,60174.0,60161.0,0.66869875]
[1727969357091,0.083114,60168.0,60165.0,0.083116]
[1727969357280,0.083114,60168.0,60167.0,0.083114]
[1727969359294,0.083116,60166.0,60165.0,0.003]
[1727969359794,0.03210947,60166.0,60165.0,0.083117]
[1727969360498,0.13168998,60182.0,60171.0,0.083107]
[1727969360709,0.20427052,60181.0,60180.0,0.29]
[1727969360987,0.03210834,60181.0,60180.0,0.083096]
[1727969361291,0.02089739,60184.0,60183.0,0.083092]
[1727969361488,0.05299875,60184.0,60183.0,0.083092]
[1727969361695,0.13608975,60184.0,60183.0,0.083092]
[1727969362485,0.02089739,60184.0,60183.0,0.083092]
[1727969362788,0.00249331,60184.0,60183.0,0.083092]
[1727969362988,0.083086,60188.0,60180.0,0.001]
[1727969363191,0.083086,60188.0,60187.0,0.083086]
[1727969363983,0.083086,60188.0,60184.0,0.3608]
[1727969364293,0.083089,60185.0,60184.0,0.44389]
[1727969365301,0.086085,60188.0,60187.0,0.083084]
[1727969365594,0.011,60188.0,60187.0,0.084084]
[1727969366588,0.33229246,60203.0,60187.0,1.181524]
[1727969366784,0.083072,60198.0,60197.0,0.083073]
[1727969367086,0.083072,60198.0,60191.0,0.29]
[1727969367087,0.083066,60202.0,60191.0,0.29]
[1727969367294,0.083066,60202.0,60201.0,0.083067]
[1727969367491,0.083074,60196.0,60195.0,0.083075]
[1727969367685,0.083069,60200.0,60199.0,0.083067]
[1727969367892,0.11516398,60200.0,60199.0,0.083067]
[1727969368195,0.02090216,60203.0,60188.0,0.0634]
[1727969368196,0.02090216,60203.0,60202.0,0.083066]
[1727969368392,0.00249246,60203.0,60202.0,0.083066]
[1727969368792,0.01794596,60205.0,60196.0,0.3608]
[1727969369093,0.083062,60205.0,60204.0,0.083063]
[1727969369495,0.083062,60205.0,60199.0,0.001]
[1727969369685,0.083067,60201.0,60200.0,0.083068]
[1727969370798,0.083068,60200.0,60199.0,0.003]
[1727969370992,0.40516279,60200.0,60199.0,0.003]
[1727969371192,0.11516279,60200.0,60199.0,0.003]
[1727969371397,0.11516279,60200.0,60196.0,0.3608]
[1727969371591,0.083068,60200.0,60199.0,0.08307]
[1727969371791,0.0329,60201.0,60196.0,0.443874]
[1727969371792,0.083073,60197.0,60196.0,0.443874]
[1727969372097,0.001,60200.0,60199.0,0.08307]
[1727969372489,0.083058,60208.0,60199.0,0.08307]
[1727969372694,0.083056,60210.0,60209.0,0.083053]
[1727969374393,0.091056,60210.0,60209.0,0.084053]
[1727969375102,0.094056,60210.0,60209.0,0.001]
[1727969375503,0.011,60210.0,60209.0,0.084056]
[1727969376796,0.094055,60210.0,60209.0,0.084056]
[1727969377197,0.094055,60210.0,60209.0,0.001]
[1727969378905,0.094055,60210.0,60209.0,0.084056]
[1727969379403,0.011,60210.0,60209.0,0.084056]
[1727969380305,0.094055,60210.0,60209.0,0.084056]
[1727969380904,0.094055,60210.0,60209.0,0.001]
[1727969384003,0.592335,60210.0,60209.0,0.001]
[1727969384202,0.62442712,60210.0,60209.0,0.001]
[1727969385005,0.12614712,60210.0,60209.0,0.001]
[1727969385312,0.16683055,60210.0,60209.0,0.001]
[1727969385811,0.12614712,60210.0,60209.0,0.001]
[1727969387405,0.12614712,60210.0,60209.0,0.084056]
[1727969387910,0.12614712,60210.0,60209.0,0.374056]
[1727969387911,0.04309212,60210.0,60209.0,0.374056]
[1727969388116,0.011,60210.0,60209.0,0.374056]
[1727969388701,0.011,60210.0,60209.0,1.472336]
[1727969389815,0.011,60210.0,60209.0,0.872336]
[1727969390409,0.011,60210.0,60209.0,1.233136]
[1727969391014,0.011,60210.0,60209.0,0.444856]
[1727969391207,0.094055,60210.0,60209.0,0.444856]
[1727969391406,0.12614009,60210.0,60209.0,0.3618]
[1727969391611,0.12614009,60210.0,60209.0,0.001]
[1727969391807,0.16681734,60210.0,60209.0,0.001]
[1727969392313,0.083063,60204.0,60203.0,0.3608]
[1727969392710,0.11515229,60204.0,60203.0,0.3608]
[1727969392905,0.11515229,60204.0,60203.0,0.443864]
[1727969393412,0.083063,60204.0,60203.0,0.443864]
[1727969393621,0.085063,60204.0,60203.0,0.443864]
[1727969393803,0.11715257,60204.0,60203.0,0.443864]
[1727969394209,0.11715257,60204.0,60203.0,0.3608]
[1727969394410,0.11715363,60204.0,60203.0,0.3608]
[1727969394619,0.11715363,60204.0,60203.0,0.443864]
[1727969394819,0.03409063,60204.0,60203.0,0.447864]
[1727969395004,0.002,60204.0,60203.0,0.447864]
[1727969395312,0.083052,60213.0,60212.0,0.083051]
[1727969395510,0.1151398,60213.0,60212.0,0.083051]
[1727969395825,0.1151398,60213.0,60207.0,0.29]
[1727969396113,0.0320878,60212.0,60207.0,0.29]
[1727969396303,0.083054,60212.0,60211.0,0.083053]
[1727969396510,0.083054,60212.0,60208.0,0.083057]
[1727969396511,0.083057,60209.0,60208.0,0.083057]
[1727969396704,0.08306,60206.0,60203.0,0.3608]
[1727969396910,0.083063,60204.0,60203.0,0.3608]
[1727969397216,0.11515055,60204.0,60203.0,0.443864]
[1727969397616,0.11515055,60204.0,60203.0,0.3608]
[1727969398009,0.083067,60201.0,60200.0,0.083067]
[1727969398314,0.083067,60201.0,60200.0,0.443867]
[1727969398517,0.083061,60207.0,60206.0,0.083058]
[1727969398721,0.11515079,60207.0,60206.0,0.373058]
[1727969398915,0.11515029,60207.0,60206.0,0.373058]
[1727969399912,0.11515029,60207.0,60206.0,0.374058]
[1727969400114,0.11915029,60207.0,60206.0,0.374058]
[1727969400311,0.11915029,60207.0,60206.0,0.001]
[1727969400719,0.1598329,60207.0,60206.0,0.001]
[1727969401419,0.1598329,60207.0,60206.0,0.6518]
[1727969401420,0.0767719,60207.0,60206.0,0.6518]
[1727969401613,0.07676889,60207.0,60206.0,0.73486]
[1727969401819,0.15982633,60207.0,60206.0,0.08406]
[1727969402020,0.15982676,60207.0,60206.0,0.08406]
[1727969402223,0.15982676,60207.0,60206.0,0.001]
[1727969402628,0.26719588,60207.0,60206.0,0.001]
[1727969402928,0.21081917,60207.0,60206.0,0.001]
[1727969403226,0.35886779,60207.0,60206.0,0.001]
[1727969403418,0.21081917,60207.0,60206.0,0.001]
[1727969404823,0.22885381,60207.0,60206.0,0.001]
[1727969405123,0.083073,60197.0,60196.0,0.00249181]
[1727969405320,0.083083,60190.0,60182.0,0.083093]
[1727969405625,0.083096,60180.0,60179.0,0.443897]
[1727969405830,0.03208826,60180.0,60179.0,0.443897]
[1727969406024,0.03210096,60184.0,60179.0,1.45932]
[1727969406219,0.03209974,60183.0,60182.0,0.083093]
[1727969406522,0.21475215,60192.0,60182.0,0.083093]
[1727969406523,0.08308,60192.0,60182.0,0.373093]
[1727969406718,0.083088,60186.0,60185.0,0.083088]
[1727969406920,0.03209967,60186.0,60185.0,0.083088]
[1727969407116,0.13167215,60189.0,60183.0,0.29]
[1727969407322,0.083083,60190.0,60189.0,0.083084]
[1727969407522,0.11518174,60190.0,60189.0,0.083084]
[1727969407720,0.11618174,60190.0,60189.0,0.083084]
[1727969408116,0.11618174,60190.0,60183.0,0.29]
[1727969408320,0.083092,60185.0,60182.0,0.006]
[1727969408520,0.083092,60183.0,60182.0,0.089093]
[1727969408830,0.03210093,60183.0,60182.0,0.083093]
[1727969409029,0.001,60184.0,60183.0,0.083092]
[1727969409430,0.13377946,60196.0,60189.0,0.083084]
[1727969409625,0.083078,60194.0,60193.0,0.083077]
[1727969409928,0.11517421,60194.0,60193.0,0.083077]
[1727969410131,0.083079,60192.0,60191.0,0.3608]
[1727969410434,0.11517616,60192.0,60191.0,0.3608]
[1727969411135,0.11517616,60192.0,60191.0,0.443881]
[1727969411638,0.03209716,60192.0,60191.0,0.443881]
[1727969412025,0.13167215,60200.0,60191.0,0.3608]
[1727969412327,0.03209593,60199.0,60198.0,0.083071]
[1727969412522,0.11516224,60199.0,60198.0,0.083071]
[1727969412921,0.083078,60195.0,60194.0,0.083076]
[1727969413125,0.083079,60192.0,60191.0,0.3678]
[1727969413336,0.11517404,60192.0,60191.0,0.3678]
[1727969414729,0.03309504,60192.0,60191.0,0.6578]
[1727969415031,0.03309752,60192.0,60191.0,0.740881]
[1727969415227,0.03309752,60192.0,60191.0,0.739881]
[1727969415423,0.03309752,60192.0,60191.0,1.838281]
[1727969415628,0.001,60192.0,60191.0,1.838281]
[1727969415823,0.001,60192.0,60191.0,0.739881]
[1727969416227,0.001,60192.0,60191.0,0.450881]
[1727969416629,0.11617363,60192.0,60191.0,0.450881]
[1727969417132,0.11617363,60192.0,60191.0,0.3678]
[1727969417535,0.11617775,60192.0,60191.0,0.3678]
[1727969418232,0.13411101,60192.0,60191.0,0.3678]
[1727969419022,0.17480439,60192.0,60191.0,0.3678]
[1727969419828,0.083096,60180.0,60179.0,0.3608]
[1727969420033,0.11519792,60180.0,60179.0,0.443897]
[1727969420433,0.11519792,60180.0,60179.0,0.3608]
[1727969420944,0.03210192,60180.0,60179.0,0.443897]
[1727969421535,0.03410192,60180.0,60179.0,0.451897]
[1727969421743,0.002,60180.0,60179.0,0.451897]
[1727969423931,0.002,60180.0,60179.0,0.46991492]
[1727969424132,0.085096,60180.0,60179.0,0.451897]
[1727969424432,0.11719603,60180.0,60179.0,0.451897]
[1727969424837,0.11719603,60180.0,60179.0,0.3688]
[1727969425233,0.15789501,60180.0,60179.0,0.3688]
[1727969425441,0.19109501,60180.0,60179.0,0.3688]
[1727969425936,0.32294784,60180.0,60179.0,0.3688]
[1727969426235,0.19109501,60180.0,60179.0,0.3688]
[1727969426634,0.19109501,60180.0,60179.0,0.008]
[1727969426828,1.99143548,60180.0,60169.0,0.00249254]
[1727969427038,0.08311,60170.0,60169.0,0.00249254]
[1727969427227,0.15590901,60170.0,60169.0,0.00249254]
[1727969427431,0.083124,60160.0,60159.0,0.3608]
[1727969427631,0.083119,60164.0,60154.0,0.3608]
[1727969427839,0.083131,60155.0,60154.0,0.3608]
[1727969428138,0.40524747,60155.0,60154.0,0.3608]
[1727969428734,0.11524747,60155.0,60154.0,0.733932]
[1727969428932,0.11524747,60155.0,60154.0,0.3608]
[1727969429137,0.11624747,60155.0,60154.0,0.3608]
[1727969429443,0.084131,60155.0,60154.0,0.3608]
[1727969429636,0.17926285,60169.0,60154.0,1.832652]
[1727969429637,0.13187809,60169.0,60154.0,1.832652]
[1727969429836,0.03211395,60168.0,60167.0,0.373113]
[1727969430142,0.13187809,60183.0,60167.0,0.6508]
[1727969430438,0.03210617,60182.0,60175.0,0.29]
[1727969430642,0.0831,60178.0,60176.0,0.083102]
[1727969431041,0.02005182,60184.0,60171.0,0.29]
[1727969431238,0.03210502,60183.0,60171.0,0.29]
[1727969431537,0.10314382,60184.0,60171.0,0.29]
[1727969431538,0.0831,60177.0,60173.0,0.083105]
[1727969431737,0.083096,60180.0,60171.0,0.29]
[1727969431940,0.083096,60180.0,60176.0,0.083101]
[1727969432245,0.083096,60181.0,60179.0,0.083097]
[1727969432538,0.083096,60181.0,60180.0,0.083096]
[1727969432746,0.11520076,60181.0,60180.0,0.083096]
[1727969433243,0.083096,60181.0,60180.0,0.083096]
[1727969433446,0.10414382,60184.0,60176.0,0.29]
[1727969433739,0.10414382,60184.0,60182.0,0.083093]
[1727969433740,0.03210428,60183.0,60182.0,0.083093]
[1727969433937,0.29,60196.0,60182.0,0.083093]
[1727969433938,0.13187809,60195.0,60183.0,0.083092]
[1727969434139,0.03210022,60194.0,60193.0,0.373078]
[1727969434349,0.3608,60202.0,60193.0,0.373078]
[1727969434538,0.443867,60202.0,60201.0,0.083067]
[1727969434739,0.41073619,60202.0,60201.0,0.083067]
[1727969434943,0.03209487,60202.0,60201.0,0.083067]
[1727969435242,0.083049,60214.0,60213.0,0.083051]
[1727969435444,0.11513884,60214.0,60213.0,0.083051]
[1727969435647,0.03208984,60214.0,60213.0,0.083051]
[1727969436351,0.03208984,60214.0,60200.0,0.37909995]
[1727969436352,0.03208984,60214.0,60208.0,0.29]
[1727969436548,0.03208984,60214.0,60206.0,0.3608]
[1727969436549,0.3608,60222.0,60212.0,0.29]
[1727969436750,0.03208586,60221.0,60219.0,0.083042]
[1727969437041,0.083038,60222.0,60219.0,0.083042]
[1727969437042,0.10069312,60222.0,60219.0,0.083042]
[1727969437237,0.083041,60220.0,60219.0,0.083042]
[1727969437639,0.29,60227.0,60211.0,0.3608]
[1727969437847,0.014,60221.0,60211.0,0.3608]
[1727969438049,0.03208329,60220.0,60219.0,0.083042]
[1727969438345,0.014,60221.0,60220.0,0.083041]
[1727969439140,0.097039,60221.0,60220.0,0.083041]
[1727969439541,0.111039,60221.0,60220.0,0.083041]
[1727969439847,0.111039,60221.0,60216.0,0.3608]
[1727969439848,0.083045,60217.0,60216.0,0.443846]
[1727969440039,0.014,60220.0,60216.0,0.3608]
[1727969440239,0.014,60220.0,60219.0,0.083042]
[1727969440648,0.11499,60221.0,60220.0,0.083041]
[1727969440649,0.019,60221.0,60220.0,0.083041]
[1727969441041,0.005,60221.0,60220.0,0.083041]
[1727969441348,0.00249135,60230.0,60216.0,0.3608]
[1727969441349,0.083045,60217.0,60216.0,0.3608]
[1727969442448,0.001,60220.0,60216.0,0.3608]
[1727969442647,0.001,60220.0,60219.0,0.083042]
[1727969442848,0.001,60220.0,60216.0,0.6508]
[1727969442849,0.003,60221.0,60216.0,0.6508]
[1727969443348,0.003,60221.0,60220.0,0.083041]
[1727969443543,0.086039,60221.0,60220.0,0.083041]
[1727969444244,0.083045,60218.0,60216.0,0.443846]
[1727969444547,0.083045,60217.0,60216.0,0.3608]
[1727969445255,0.083045,60217.0,60216.0,0.443846]
[1727969445453,0.10086378,60217.0,60216.0,0.3628]
[1727969446553,0.133949,60217.0,60216.0,0.002]
[1727969446738,0.17462763,60217.0,60216.0,0.00134486]
[1727969447054,0.083055,60210.0,60206.0,0.00249134]
[1727969447347,0.083059,60207.0,60206.0,0.00249134]
[1727969447953,0.11515026,60207.0,60206.0,0.00249134]
[1727969448248,0.083066,60202.0,60201.0,0.3608]
[1727969449152,0.083066,60202.0,60201.0,0.443867]
[1727969449449,0.001,60207.0,60201.0,0.6508]
[1727969449648,0.083059,60207.0,60206.0,0.08306]
[1727969449851,0.29,60214.0,60202.0,0.083064]
[1727969450048,0.083064,60203.0,60202.0,0.083064]
[1727969451247,0.083066,60202.0,60201.0,0.3628]
[1727969451458,0.083066,60202.0,60201.0,0.3608]
[1727969451944,0.083066,60202.0,60201.0,0.083067]
[1727969452355,0.001,60203.0,60197.0,0.373072]
[1727969452557,0.083071,60198.0,60197.0,0.373072]
[1727969452750,0.001,60203.0,60197.0,0.373072]
[1727969452751,0.002,60203.0,60202.0,0.083066]
[1727969453052,0.001,60203.0,60202.0,0.373066]
[1727969453241,0.083064,60203.0,60202.0,0.083066]
[1727969453443,0.0175875,60205.0,60201.0,0.3608]
[1727969453444,0.083066,60202.0,60201.0,0.3608]
[1727969455050,0.10138309,60202.0,60201.0,0.3608]
[1727969455653,0.10338309,60202.0,60201.0,0.3608]
[1727969456153,0.084066,60202.0,60201.0,0.733867]
[1727969456356,0.083051,60213.0,60201.0,1.832187]
[1727969456550,0.083046,60217.0,60216.0,0.083046]
[1727969457151,0.083051,60213.0,60212.0,0.373051]
[1727969457544,0.084051,60213.0,60207.0,0.29]
[1727969457744,0.08306,60206.0,60201.0,0.3608]
[1727969458146,0.084066,60202.0,60201.0,0.3618]
[1727969458354,0.084066,60202.0,60201.0,0.001]
[1727969459350,0.11615973,60202.0,60201.0,0.001]
[1727969459559,0.08307,60199.0,60198.0,0.29]
[1727969459857,0.11516373,60199.0,60198.0,0.29]
[1727969460161,0.11516373,60199.0,60198.0,0.373071]
[1727969460454,0.11516373,60199.0,60198.0,1.471431]
[1727969460455,0.00076452,60199.0,60198.0,1.471431]
[1727969460655,0.084066,60202.0,60201.0,0.083067]
[1727969461449,0.12474963,60202.0,60201.0,0.083067]
[1727969461656,0.04168363,60202.0,60201.0,0.083067]
[1727969461863,0.001,60202.0,60201.0,0.083067]
[1727969462056,0.24779354,60213.0,60201.0,0.083067]
[1727969462057,0.13187809,60211.0,60206.0,0.08306]
[1727969462359,0.16474154,60214.0,60213.0,0.083051]
[1727969462360,0.13187809,60214.0,60213.0,0.083051]
[1727969462553,0.16474154,60220.0,60213.0,0.083051]
[1727969462554,0.13187809,60217.0,60213.0,0.3608]
[1727969462754,0.14836285,60224.0,60220.0,0.083041]
[1727969462755,0.14836285,60221.0,60220.0,0.083041]
[1727969462959,0.14836285,60221.0,60217.0,0.29]
[1727969462960,0.04067158,60221.0,60217.0,0.29]
[1727969463157,0.04067158,60220.0,60219.0,0.083042]
[1727969463355,0.21486008,60220.0,60219.0,0.083042]
[1727969463663,0.12371258,60220.0,60219.0,0.083042]
[1727969463868,0.12371258,60220.0,60214.0,0.083049]
[1727969463869,0.083049,60215.0,60214.0,0.083049]
[1727969464157,0.083049,60215.0,60213.0,0.3608]
[1727969464158,0.083049,60214.0,60213.0,0.3608]
[1727969464360,0.04067158,60214.0,60213.0,0.3608]
[1727969464554,0.57580994,60229.0,60213.0,1.74904]
[1727969464555,0.13190197,60217.0,60213.0,1.74904]
[1727969464859,0.13190197,60221.0,60216.0,0.29]
[1727969465060,0.13190197,60221.0,60220.0,0.373041]
[1727969465359,0.083034,60226.0,60220.0,0.6508]
[1727969465555,0.083034,60226.0,60225.0,0.29]
[1727969466161,0.083031,60228.0,60223.0,0.083036]
[1727969466356,0.01796877,60229.0,60217.0,0.083045]
[1727969466357,0.083038,60222.0,60217.0,0.083045]
[1727969466560,0.13190197,60228.0,60216.0,0.29]
[1727969466759,0.08304,60221.0,60216.0,0.29]
[1727969467160,0.083037,60224.0,60222.0,0.083038]
[1727969467463,0.083037,60223.0,60222.0,0.083038]
[1727969467661,0.0306,60229.0,60222.0,0.083038]
[1727969467868,0.086033,60226.0,60225.0,0.083034]
[1727969468169,0.003,60226.0,60225.0,0.733834]
[1727969468470,0.21491397,60241.0,60228.0,0.083029]
[1727969468657,0.14836285,60245.0,60242.0,0.083011]
[1727969468658,0.13190197,60245.0,60242.0,0.083011]
[1727969468856,0.21154993,60256.0,60225.0,0.3608]
[1727969468857,0.16474154,60260.0,60259.0,0.082987]
[1727969469163,0.21486897,60274.0,60259.0,1.0116]
[1727969469463,0.082975,60269.0,60267.0,0.29]
[1727969469766,0.13439144,60278.0,60266.0,0.29]
[1727969470065,0.00248947,60278.0,60270.0,0.082971]
[1727969470256,0.082968,60273.0,60266.0,0.29]
[1727969470460,0.082968,60273.0,60268.0,0.082974]
[1727969470857,0.082968,60273.0,60266.0,0.29]